bitfinex/quotes_ETHUSD_20250929
["timestamp","ask_amount","ask_price","bid_price","bid_amount"]
[1759168940697,0.001,4165.4,4165.3,12.65421136]
[1759168940897,0.001,4165.4,4165.3,14.20251427]
[1759168944224,0.001,4165.4,4165.3,14.99451427]
[1759168946126,0.001,4165.9,4165.4,0.792]
[1759168946332,0.001,4165.9,4165.8,8.86993531]
[1759168946518,0.001,4165.9,4165.8,11.73093531]
[1759168946720,0.001,4165.9,4165.8,13.52630418]
[1759168959223,0.001,4165.9,4165.8,13.87240418]
[1759168959517,0.001,4165.9,4165.8,14.30810418]
[1759168960316,0.001,4165.9,4165.8,11.13140418]
[1759168960517,0.2374,4165.9,4165.8,8.98993531]
[1759168960756,0.6675,4165.9,4165.8,11.72693531]
[1759168966071,0.2374,4165.9,4165.8,11.72693531]
[1759168970459,0.001,4165.9,4165.8,11.72693531]
[1759168970658,0.001,4166.0,4165.9,2.40044168]
[1759168970872,0.001,4166.0,4165.9,5.20345673]
[1759168971071,0.001,4166.0,4165.9,5.17945232]
[1759168972595,0.001,4166.0,4165.9,12.44088833]
[1759168973580,0.001,4166.0,4165.9,5.97145232]
[1759168974273,0.001,4166.0,4165.9,12.44088833]
[1759168974766,0.001,4166.0,4165.9,5.97145232]
[1759168976097,0.001,4166.0,4165.9,12.00518833]
[1759168976313,0.2374,4166.0,4165.9,14.74218833]
[1759168977166,0.001,4166.0,4165.9,14.74218833]
[1759168978897,0.2374,4166.0,4165.9,14.74218833]
[1759168979326,0.001,4166.0,4165.9,15.17788833]
[1759168983200,0.2374,4166.0,4165.9,4.74375232]
[1759168983501,0.2374,4166.0,4165.9,11.60587769]
[1759168984201,0.2374,4166.0,4165.8,0.122]
[1759168984499,0.2374,4166.0,4165.9,5.13644168]
[1759168984799,0.001,4166.0,4165.9,5.13644168]
[1759168984992,0.2374,4166.0,4165.9,5.13644168]
[1759168985913,0.001,4166.0,4165.9,6.71438602]
[1759168986221,0.6675,4166.0,4165.8,0.002]
[1759168986371,0.2374,4166.0,4165.9,2.736]
[1759168986566,0.6675,4166.0,4165.9,2.736]
[1759168986876,0.6675,4166.0,4165.9,5.13644168]
[1759168987076,0.2374,4166.0,4165.9,5.13644168]
[1759168992614,0.6804,4166.0,4165.9,5.13644168]
[1759168992975,0.2374,4166.0,4165.9,5.13644168]
[1759168994434,0.001,4166.0,4165.9,5.89034154]
[1759168994572,0.001,4166.0,4165.9,6.32044154]
[1759168995308,0.001,4166.0,4165.9,7.11244154]
[1759168995483,0.001,4166.0,4165.9,6.80234154]
[1759168995679,0.001,4166.0,4165.9,7.23244154]
[1759168997294,0.001,4166.0,4165.9,6.80234154]
[1759168997710,0.001,4166.4,4165.9,10.11244154]
[1759168997908,0.001,4166.5,4166.4,3.1921536]
[1759168998218,0.001,4166.5,4166.4,2.4001536]
[1759168998400,0.001,4166.5,4166.4,5.1361536]
[1759168998599,0.2383,4166.5,4166.4,5.1371536]
[1759168998995,0.001,4166.5,4166.4,5.1371536]
[1759168999402,0.001,4166.5,4166.4,6.71493712]
[1759168999994,0.001,4166.5,4166.4,3.97793712]
[1759169000194,0.001,4166.5,4166.4,7.93703712]
[1759169000933,0.001,4166.5,4166.4,7.50693712]
[1759169001093,0.001,4166.5,4166.4,7.93703712]
[1759169002512,0.001,4166.5,4166.4,7.50793712]
[1759169002705,0.001,4166.5,4166.4,7.93803712]
[1759169003405,0.001,4166.5,4166.4,5.20003712]
[1759169003615,0.001,4166.5,4166.4,7.93803712]
[1759169005231,0.001,4166.5,4166.4,5.20003712]
[1759169005409,0.001,4166.5,4166.4,7.50693712]
[1759169005810,0.2383,4166.5,4166.4,7.50693712]
[1759169005997,0.001,4166.5,4166.4,7.50693712]
[1759169007330,0.2383,4166.5,4166.4,6.71493712]
[1759169007534,0.2383,4166.5,4166.4,5.1371536]
[1759169007930,0.2383,4166.5,4166.4,5.2571536]
[1759169012542,0.001,4166.5,4166.4,13.49760657]
[1759169012711,0.001,4166.5,4166.4,13.92770657]
[1759169013612,0.001,4166.5,4166.4,13.49760657]
[1759169014014,0.2383,4166.5,4166.4,13.49760657]
[1759169016323,0.2383,4166.5,4166.4,15.13060009]
[1759169018131,0.6812,4166.5,4166.4,2.5201536]
[1759169018433,0.6812,4166.5,4166.4,5.2561536]
[1759169019351,0.2383,4166.5,4166.4,5.2561536]
[1759169025934,0.001,4166.5,4166.4,5.7059536]
[1759169026641,0.001,4166.5,4166.4,5.2561536]
[1759169027045,0.001,4166.5,4166.4,7.29583712]
[1759169031478,0.001,4166.5,4166.4,8.08783712]
[1759169032190,0.001,4166.5,4166.4,5.35183712]
[1759169032357,0.001,4166.5,4166.4,8.08783712]
[1759169033081,0.001,4166.5,4166.4,8.18408362]
[1759169033797,0.001,4166.5,4166.4,7.63803712]
[1759169034152,0.001,4166.5,4166.4,8.08783712]
[1759169039373,0.2326,4166.5,4166.4,5.1361536]
[1759169042789,0.001,4166.5,4166.4,5.1361536]
[1759169043094,0.2326,4166.5,4166.4,5.1361536]
[1759169044277,0.2326,4166.5,4166.4,12.13495875]
[1759169044829,0.2326,4166.5,4166.4,2.736]
[1759169044970,0.6792,4166.5,4166.4,5.1361536]
[1759169045798,0.6792,4166.5,4166.4,2.736]
[1759169047175,0.6792,4166.5,4166.3,0.002]
[1759169047474,0.6792,4166.5,4166.4,2.736]
[1759169050411,0.2326,4166.5,4166.4,2.736]
[1759169050899,0.2326,4166.5,4166.4,2.76000153]
[1759169051085,0.001,4166.5,4166.4,2.88000153]
[1759169051281,0.001,4166.5,4166.4,2.856]
[1759169051481,0.2461,4166.5,4166.4,2.856]
[1759169052291,0.6772,4166.5,4166.4,2.856]
[1759169053401,0.2461,4166.5,4166.4,2.856]
[1759169055490,0.2461,4166.5,4166.4,5.2561536]
[1759169056209,0.2461,4166.5,4166.4,2.856]
[1759169059414,0.6968,4166.5,4166.4,2.736]
[1759169060190,1.01870389,4166.5,4166.3,2.738]
[1759169060395,0.6976,4166.4,4166.3,2.738]
[1759169061686,3.0977536,4166.4,4166.3,2.738]
[1759169062112,0.6976,4166.4,4166.3,2.738]
[1759169062289,1.2798607,4166.4,4166.3,2.738]
[1759169062929,0.8291607,4166.4,4166.3,2.738]
[1759169063121,0.2469,4166.4,4166.3,2.738]
[1759169064436,0.6976,4166.4,4166.3,2.738]
[1759169065346,3.0977536,4166.4,4166.3,0.002]
[1759169067544,0.6976,4166.4,4166.3,0.002]
[1759169067712,3.76563054,4166.4,4166.3,0.002]
[1759169068942,0.91477694,4166.4,4166.3,0.002]
[1759169070454,3.76563054,4166.4,4166.3,0.002]
[1759169070758,3.31493054,4166.4,4166.3,0.002]
[1759169070939,0.91477694,4166.4,4166.3,0.002]
[1759169071114,1.01106863,4166.4,4166.3,0.002]
[1759169071317,0.09629169,4166.4,4166.3,0.002]
[1759169071644,0.001,4166.5,4166.3,0.4681]
[1759169071844,0.001,4166.5,4166.4,0.4661]
[1759169072148,0.001,4166.5,4166.4,2.8662536]
[1759169072516,0.001,4166.5,4166.4,2.89025513]
[1759169072717,0.001,4166.5,4166.4,4.40498654]
[1759169073719,0.001,4166.5,4166.4,3.91488501]
[1759169073918,0.001,4166.5,4166.4,5.6022536]
[1759169083230,0.001,4166.5,4166.4,5.1361536]
[1759169083757,0.001,4166.5,4166.4,5.7295536]
[1759169086363,0.001,4166.5,4166.4,5.2561536]
[1759169086526,0.001,4166.5,4166.4,5.7295536]
[1759169086727,0.001,4166.5,4166.4,7.25223916]
[1759169091964,0.001,4166.5,4166.4,7.25123916]
[1759169092357,0.001,4166.5,4166.4,6.77783916]
[1759169092550,0.001,4166.5,4166.4,4.04283916]
[1759169092752,0.001,4166.5,4166.4,6.77783916]
[1759169092960,0.001,4166.5,4166.4,7.25123916]
[1759169095776,0.001,4166.5,4166.4,6.77783916]
[1759169095947,0.001,4166.5,4166.4,5.2551536]
[1759169096148,0.2451,4166.5,4166.4,5.2551536]
[1759169097583,0.2451,4166.5,4166.4,2.5201536]
[1759169097881,0.2451,4166.5,4166.4,5.2551536]
[1759169098096,0.2451,4166.5,4166.4,0.12]
[1759169098374,0.6975,4166.5,4166.3,2.737]
[1759169098580,0.001,4166.5,4166.3,2.737]
[1759169098748,0.2441,4166.4,4166.3,2.737]
[1759169103162,2.6442536,4166.4,4166.3,0.002]
[1759169103394,3.62588746,4166.4,4166.3,0.002]
[1759169103579,4.07928746,4166.4,4166.3,0.002]
[1759169104098,4.07928746,4166.4,4164.6,0.122]
[1759169104099,4.63721121,4166.3,4164.6,0.122]
[1759169104303,3.0,4164.9,4164.1,0.002]
[1759169104605,3.0,4164.5,4164.1,0.002]
[1759169104760,3.0,4164.7,4164.1,0.002]
[1759169104966,0.0963383,4164.4,4164.1,0.002]
[1759169105168,0.0963383,4164.4,4164.2,8.25076421]
[1759169105369,0.2441,4164.8,4164.2,0.4734]
[1759169105571,0.2441,4164.8,4164.3,2.738]
[1759169105875,0.2441,4164.7,4164.3,2.738]
[1759169106069,0.2441,4164.6,4164.3,2.738]
[1759169106269,0.2441,4164.9,4164.3,3.2114]
[1759169106471,0.3966465,4164.8,4164.3,2.738]
[1759169106674,0.72236502,4165.0,4164.5,2.40120463]
[1759169107015,0.2441,4165.6,4164.6,2.74]
[1759169107302,3.36697439,4165.6,4164.7,0.4734]
[1759169107484,0.96635373,4165.6,4164.8,2.4010288]
[1759169107684,0.96635373,4165.6,4164.9,2.741]
[1759169107887,0.96635373,4165.6,4164.9,5.14200164]
[1759169108100,0.96635373,4165.6,4164.9,5.61540164]
[1759169108101,1.60303935,4165.6,4164.9,5.61540164]
[1759169108404,3.2441,4165.9,4165.0,0.4734]
[1759169108707,0.2441,4165.9,4165.0,0.4734]
[1759169108912,2.40053853,4165.8,4165.0,0.4734]
[1759169109089,0.2441,4165.9,4165.2,2.40079668]
[1759169109411,0.2443,4165.8,4165.3,2.741]
[1759169109609,0.2443,4165.7,4165.3,2.741]
[1759169109813,0.2443,4165.6,4165.3,2.741]
[1759169111612,0.72219809,4166.0,4165.4,0.47020729]
[1759169111811,3.72219809,4166.0,4165.4,0.47020729]
[1759169112015,2.40039939,4166.0,4165.4,0.4462]
[1759169112383,0.7221946,4166.1,4165.4,0.4462]
[1759169112583,0.7221946,4166.1,4165.4,2.84692107]
[1759169113109,3.12253522,4166.1,4165.4,0.4462]
[1759169113881,2.64589436,4166.0,4165.4,0.4462]
[1759169114096,2.64589436,4166.0,4165.5,0.12]
[1759169114501,0.2455,4165.9,4165.6,2.742]
[1759169115317,0.7221946,4166.1,4165.6,3.1836]
[1759169115702,0.2455,4166.0,4165.6,3.1836]
[1759169115901,0.2465,4166.5,4165.7,0.46560556]
[1759169116219,1.44234419,4166.4,4165.6,2.742]
[1759169116414,2.40044227,4165.9,4165.6,2.741]
[1759169116580,0.2455,4165.8,4165.6,2.741]
[1759169116777,0.2455,4165.7,4165.6,2.741]
[1759169116989,0.2455,4165.9,4165.6,2.741]
[1759169117195,0.2455,4165.8,4165.6,2.741]
[1759169118305,0.2455,4166.1,4165.6,2.741]
[1759169118512,0.12,4166.2,4165.7,0.4416]
[1759169118819,0.3655,4166.2,4165.7,0.4416]
[1759169119188,0.3655,4166.2,4165.8,0.4416]
[1759169119423,0.72214419,4166.4,4165.8,0.4416]
[1759169119593,4.32095147,4166.4,4165.8,0.5616]
[1759169119994,4.56645147,4166.4,4165.8,0.5616]
[1759169121220,2.16629047,4166.4,4165.8,0.5616]
[1759169121393,4.56647354,4166.4,4165.8,0.5616]
[1759169121593,2.16629047,4166.4,4165.8,0.5616]
[1759169121803,4.56645969,4166.4,4165.8,0.5616]
[1759169122216,2.16629047,4166.4,4165.8,0.5616]
[1759169122418,2.16629047,4166.4,4165.8,2.96209607]
[1759169122722,2.16629047,4166.4,4165.9,2.40043108]
[1759169123096,2.16629047,4166.4,4165.8,0.5616]
[1759169123297,0.52882905,4166.3,4165.8,0.5616]
[1759169123500,0.77432905,4166.3,4165.8,2.96209604]
[1759169124032,0.2455,4166.3,4165.9,2.84203581]
[1759169125209,0.2455,4166.3,4165.9,2.40043581]
[1759169125409,0.2455,4166.2,4165.9,2.40043581]
[1759169125710,0.2455,4166.1,4165.8,0.12]
[1759169127118,2.40115517,4166.4,4165.6,2.738]
[1759169127119,0.2455,4166.0,4165.6,2.738]
[1759169127304,3.1206422,4165.9,4165.5,2.859]
[1759169127642,0.55756422,4165.8,4165.5,2.859]
[1759169127837,0.2455,4165.7,4165.5,2.859]
[1759169128410,0.2455,4166.0,4165.6,0.46560614]
[1759169128611,0.2455,4166.0,4165.7,2.40051303]
[1759169128838,0.12,4166.2,4165.7,2.40055483]
[1759169129109,0.37222364,4166.2,4165.7,2.40055483]
[1759169129333,0.2455,4166.1,4165.6,2.40059368]
[1759169129515,0.2455,4166.0,4165.6,0.02400614]
[1759169129711,0.2455,4166.0,4165.7,2.40055516]
[1759169129918,0.2455,4166.0,4165.6,0.02400614]
[1759169129919,0.2455,4166.0,4165.6,2.42461492]
[1759169130138,0.2455,4166.0,4165.6,2.42461332]
[1759169130310,0.2455,4166.0,4165.6,0.46560614]
[1759169130640,0.2455,4166.0,4165.6,2.84219255]
[1759169130843,0.2455,4166.0,4165.7,2.40055199]
[1759169131554,0.12,4166.2,4165.5,2.859]
[1759169131711,0.2455,4165.9,4165.5,2.859]
[1759169131915,0.2455,4165.8,4165.5,2.859]
[1759169132130,0.2455,4165.7,4165.6,2.40061455]
[1759169132535,0.2859,4166.1,4165.6,2.40061455]
[1759169132836,0.2455,4166.0,4165.6,2.40061455]
[1759169133039,0.2455,4165.9,4165.7,2.4005402]
[1759169134347,0.2859,4166.1,4165.5,2.859]
[1759169134645,0.2859,4166.1,4165.7,0.4416]
[1759169135008,0.5314,4166.1,4165.7,0.4416]
[1759169135210,0.5314,4166.1,4165.8,2.40045663]
[1759169135515,0.2859,4166.1,4165.9,2.40043355]
[1759169135922,0.2859,4166.1,4165.8,2.84208885]
[1759169136122,0.2859,4166.1,4165.9,2.40040055]
[1759169136339,0.12,4166.2,4165.9,2.40040055]
[1759169136639,0.12,4166.2,4165.9,2.84200055]
[1759169136833,0.3655,4166.2,4165.9,0.4416]
[1759169137031,0.3655,4166.2,4165.8,2.40049125]
[1759169137413,0.3655,4166.2,4165.8,2.84209125]
[1759169137608,0.3655,4166.2,4165.8,0.4416]
[1759169137813,0.3655,4166.2,4165.8,2.84208706]
[1759169138031,0.64226062,4166.2,4165.8,2.84208706]
[1759169138219,0.64226062,4166.2,4165.9,2.40043672]
[1759169138424,0.12,4166.2,4165.9,2.84199641]
[1759169138756,0.3655,4166.2,4165.8,2.736]
[1759169139061,0.3655,4166.2,4165.8,3.1776]
[1759169139551,0.3655,4166.2,4165.9,2.40043579]
[1759169140836,0.3655,4166.2,4165.8,5.5780866]
[1759169141032,0.64226043,4166.2,4165.8,5.5780866]
[1759169141764,0.3655,4166.2,4165.9,2.40042186]
[1759169142865,0.3655,4166.2,4165.9,2.83582186]
[1759169143063,0.3655,4166.2,4165.9,0.4354]
[1759169143441,0.3655,4166.2,4165.9,2.83582391]
[1759169143832,0.3655,4166.2,4165.9,2.40042391]
[1759169144349,0.2355,4166.1,4165.8,5.13644551]
[1759169144539,0.2355,4166.0,4165.9,2.40040066]
[1759169144735,0.12,4166.2,4165.9,0.4354]
[1759169144983,0.3555,4166.2,4165.8,2.736]
[1759169145175,0.3555,4166.2,4165.8,3.1714]
[1759169145376,0.3555,4166.2,4165.9,2.40043427]
[1759169145882,0.12,4166.2,4165.8,3.1714]
[1759169146040,0.48762365,4166.1,4165.8,2.736]
[1759169146247,0.48762365,4166.1,4165.8,5.1364903]
[1759169146587,0.48762365,4166.1,4165.8,2.736]
[1759169146786,0.2355,4166.0,4165.8,2.736]
[1759169149474,0.2355,4166.0,4165.5,2.95606535]
[1759169149475,0.2355,4165.9,4165.5,0.12]
[1759169149677,0.2355,4165.9,4165.6,2.736]
[1759169149855,0.2355,4165.8,4165.6,2.736]
[1759169150173,0.2355,4165.7,4165.6,2.736]
[1759169150576,2.52030796,4166.2,4165.6,2.736]
[1759169150776,0.2355,4165.9,4165.6,2.736]
[1759169151288,0.2355,4165.9,4165.6,5.13660166]
[1759169151756,0.2355,4165.9,4165.6,5.57200166]
[1759169151956,0.2355,4165.9,4165.6,3.1714]
[1759169152499,0.2355,4165.9,4165.6,5.57201165]
[1759169153558,0.56485058,4165.9,4165.6,5.57201165]
[1759169153788,0.32935058,4165.9,4165.6,5.13661165]
[1759169153991,0.32935058,4165.9,4165.7,0.4354]
[1759169154913,0.2355,4166.1,4165.7,0.4354]
[1759169155109,0.2355,4166.0,4165.6,2.736]
[1759169155316,0.2355,4165.9,4165.5,0.12]
[1759169155620,2.4006408,4165.6,4165.1,0.12]
[1759169155820,0.12,4165.7,4165.1,2.856]
[1759169156020,0.38113,4165.6,4165.1,5.69228917]
[1759169156223,0.38113,4165.6,4165.1,5.25688917]
[1759169156422,0.61663,4165.6,4165.2,0.4354]
[1759169157407,0.38113,4165.6,4165.2,0.4354]
[1759169157615,0.2355,4165.5,4165.2,0.4354]
[1759169160395,0.2355,4165.5,4165.2,2.83623188]
[1759169160614,0.2355,4165.5,4165.2,0.4354]
[1759169161388,0.3555,4165.7,4165.2,0.4354]
[1759169161590,0.51110136,4165.6,4165.2,0.4354]
[1759169162117,0.27560136,4165.6,4165.2,0.4354]
[1759169162414,0.2355,4165.5,4165.2,0.4354]
[1759169162816,2.67623063,4165.6,4165.1,2.856]
[1759169163131,0.6913,4165.5,4165.1,2.736]
[1759169163290,0.69224645,4165.4,4165.1,2.736]
[1759169163490,0.2355,4165.3,4165.1,2.736]
[1759169164187,0.72334067,4166.4,4165.2,8.68616421]
[1759169164517,0.001,4166.4,4165.7,6.46249012]
[1759169164816,0.001,4166.4,4165.8,2.736]
[1759169165029,0.001,4166.4,4165.8,5.13648094]
[1759169165209,0.001,4166.4,4165.8,5.26078094]
[1759169165406,0.001,4166.4,4165.9,0.4354]
[1759169165589,0.001,4166.4,4165.9,2.83584168]
[1759169166119,0.001,4166.4,4165.9,2.96014168]
[1759169166702,0.001,4166.4,4165.9,2.83584168]
[1759169166887,0.2365,4166.0,4165.8,2.736]
[1759169167085,0.2355,4165.9,4165.4,5.14468504]
[1759169167288,0.2355,4165.9,4165.5,2.40065804]
[1759169167492,0.2355,4165.9,4165.6,2.40060617]
[1759169168416,0.2355,4165.9,4165.5,2.83605501]
[1759169168788,0.2355,4165.9,4165.5,2.83605343]
[1759169168992,0.2355,4165.9,4165.5,0.4354]
[1759169169205,0.2355,4165.9,4165.6,5.14360243]
[1759169169401,0.001,4166.0,4165.6,5.14360243]
[1759169169700,0.28670184,4166.0,4165.7,2.83804688]
[1759169169900,0.001,4166.0,4165.7,2.83804688]
[1759169170489,0.001,4166.0,4165.7,0.4375]
[1759169171087,0.001,4166.0,4165.7,2.83804231]
[1759169171291,0.001,4166.0,4165.9,2.40044168]
[1759169171521,0.001,4166.0,4165.8,5.70429405]
[1759169171820,0.001,4166.0,4165.9,0.4375]
[1759169172018,0.001,4166.0,4165.9,2.83794168]
[1759169172387,0.001,4166.0,4165.8,2.742]
[1759169172625,0.001,4166.0,4165.8,5.57999469]
[1759169172999,0.001,4166.0,4165.8,5.14249469]
[1759169173211,0.001,4166.0,4165.9,0.4375]
[1759169173405,0.001,4166.0,4165.9,2.83794168]
[1759169174303,0.001,4166.0,4165.9,0.4375]
[1759169174748,0.001,4166.0,4165.9,2.83794168]
[1759169176131,0.001,4166.0,4165.9,0.4375]
[1759169176928,0.001,4166.0,4165.8,2.862]
[1759169177106,0.001,4166.0,4165.8,3.3367]
[1759169177307,0.001,4166.0,4165.9,0.49870441]
[1759169177495,0.001,4166.0,4165.9,2.99944168]
[1759169177994,0.001,4166.0,4165.9,0.4747]
[1759169178411,0.001,4166.0,4165.9,2.87514168]
[1759169179626,0.001,4166.0,4165.8,2.862]
[1759169180004,0.2286,4165.9,4165.8,2.742]
[1759169181134,0.001,4166.0,4165.8,5.1424993]
[1759169181712,0.001,4166.0,4165.8,2.742]
[1759169182520,0.2286,4165.9,4165.8,2.742]
[1759169182699,0.001,4166.0,4165.8,2.742]
[1759169182930,0.48072794,4165.9,4165.8,2.742]
[1759169183295,0.25212794,4165.9,4165.8,2.742]
[1759169183641,2.88116962,4165.9,4165.5,0.12]
[1759169183802,0.48072794,4165.9,4165.3,2.74]
[1759169183998,0.7768,4165.8,4165.3,2.74]
[1759169184237,3.40043519,4165.7,4165.3,2.74]
[1759169184439,0.2286,4165.6,4165.3,2.74]
[1759169184620,0.77123728,4165.7,4165.3,2.74]
[1759169184824,0.2286,4165.5,4165.3,2.74]
[1759169185837,0.34303728,4165.7,4165.4,0.4747]
[1759169186024,0.34303728,4165.7,4165.3,5.14075371]
[1759169186025,0.34303728,4165.7,4165.5,0.4747]
[1759169186226,0.34303728,4165.7,4165.3,2.74]
[1759169186428,0.57163728,4165.7,4165.4,0.4747]
[1759169186622,0.57163728,4165.7,4165.3,2.74]
[1759169186623,0.2286,4165.6,4165.3,2.74]
[1759169187137,0.2286,4165.5,4165.3,2.74]
[1759169187630,2.40055692,4165.7,4165.3,2.74]
[1759169187836,0.74591658,4165.6,4165.3,2.74]
[1759169188020,3.14653883,4165.6,4165.3,2.74]
[1759169188224,0.2286,4165.5,4165.3,2.74]
[1759169188530,0.2286,4165.4,4165.3,2.74]
[1759169188731,0.2286,4165.4,4164.6,0.002]
[1759169188939,2.40088323,4165.2,4164.7,2.859]
[1759169189107,2.62950639,4165.1,4164.7,2.859]
[1759169189307,0.2286,4165.0,4164.7,3.3337]
[1759169189508,0.94944067,4165.3,4164.8,0.4747]
[1759169189715,0.2286,4165.3,4164.9,0.4747]
[1759169190210,2.62945338,4165.2,4164.7,2.859]
[1759169190409,0.2286,4165.1,4164.7,2.859]
[1759169190610,0.2286,4165.0,4164.7,2.859]
[1759169190808,0.2286,4165.0,4164.7,3.3337]
[1759169191733,0.2286,4165.0,4164.7,2.859]
[1759169192410,0.2286,4164.9,4164.6,0.002]
[1759169192810,0.2286,4164.8,4164.6,0.002]
[1759169193342,0.2286,4164.7,4164.6,0.002]
[1759169194129,0.2286,4164.9,4164.6,0.4767]
[1759169194338,0.52983964,4164.9,4164.6,0.4767]
[1759169194510,0.52983964,4164.9,4164.6,0.002]
[1759169195345,0.2286,4164.8,4164.6,0.002]
[1759169195531,2.40113333,4164.7,4164.6,0.002]
[1759169195724,2.82933333,4164.7,4164.6,0.002]
[1759169195923,3.64912873,4164.7,4164.6,0.002]
[1759169196123,3.44952873,4164.7,4164.6,0.002]
[1759169196319,1.0483954,4164.7,4164.6,0.002]
[1759169197941,0.8197954,4164.7,4164.6,0.4767]
[1759169198144,0.12,4164.9,4164.6,0.4767]
[1759169198342,0.12,4164.9,4164.7,0.4747]
[1759169199673,0.76061658,4165.6,4164.8,0.4457]
[1759169199827,0.12,4165.3,4164.8,0.57]
[1759169200167,0.12,4165.3,4164.9,2.84671706]
[1759169200364,0.12,4165.3,4165.0,0.4457]
[1759169201227,0.12,4165.3,4164.8,2.40105611]
[1759169201427,0.2433,4165.2,4164.8,2.40105611]
[1759169201628,0.2433,4165.2,4164.8,0.4457]
[1759169202529,0.2433,4165.2,4164.8,2.84676315]
[1759169202730,0.12,4165.3,4164.9,0.4457]
[1759169202941,0.12,4165.3,4165.0,0.4457]
[1759169203341,0.3633,4165.3,4165.0,0.4457]
[1759169203846,0.12,4165.3,4164.7,2.40111782]
[1759169204152,0.2433,4165.2,4164.6,2.52318065]
[1759169204354,0.12,4165.3,4164.7,0.4457]
[1759169204550,0.2433,4165.2,4164.7,2.84683306]
[1759169204863,0.2433,4165.2,4164.8,0.4457]
[1759169205024,0.2433,4165.2,4164.8,2.84673665]
[1759169205230,0.2433,4165.2,4164.8,0.4457]
[1759169206057,0.2433,4165.2,4164.9,0.4457]
[1759169208133,0.12,4165.3,4164.7,2.40113104]
[1759169208367,0.12,4165.3,4164.8,0.4457]
[1759169208567,0.12,4165.3,4164.7,2.52543333]
[1759169208865,0.3633,4165.3,4164.9,0.4457]
[1759169209281,0.2433,4165.2,4164.9,0.4457]
[1759169209632,0.2433,4165.1,4164.6,2.96887054]
[1759169209869,0.2433,4165.1,4164.7,0.4457]
[1759169210080,0.2433,4165.0,4164.6,0.122]
[1759169210662,2.40185007,4165.2,4164.6,0.122]
[1759169210867,0.2433,4164.9,4164.6,0.122]
[1759169211038,4.16090773,4165.2,4164.6,0.122]
[1759169211239,0.2433,4165.1,4164.6,0.122]
[1759169212461,0.2433,4165.0,4164.6,0.122]
[1759169212655,2.40097413,4165.0,4164.6,0.002]
[1759169212860,0.70625318,4164.9,4164.6,0.002]
[1759169213236,0.46295318,4164.9,4164.6,0.002]
[1759169213540,0.2433,4164.8,4164.6,0.002]
[1759169214343,0.46295318,4164.9,4164.6,0.002]
[1759169214550,0.2433,4164.7,4164.6,0.002]
[1759169214880,3.01402072,4164.7,4164.6,0.002]
[1759169215176,6.21952072,4164.7,4164.6,0.002]
[1759169215876,3.34988739,4164.7,4164.6,0.002]
[1759169216276,5.75102072,4164.7,4164.6,0.002]
[1759169216978,6.21952072,4164.7,4164.6,0.002]
[1759169217375,9.21952072,4164.7,4164.6,0.002]
[1759169223781,11.45552072,4164.7,4164.6,0.002]
[1759169226381,22.52487145,4164.7,4164.6,0.002]
[1759169226562,22.24099392,4164.7,4164.6,0.002]
[1759169227079,22.6176844,4164.7,4164.6,0.002]
[1759169227583,22.71405125,4164.7,4164.6,0.002]
[1759169231358,19.97705125,4164.7,4164.6,0.002]
[1759169231582,22.71505125,4164.7,4164.6,0.002]
[1759169232580,4.63742164,4164.2,4164.1,0.002]
[1759169232885,2.40165233,4163.8,4163.2,0.002]
[1759169233063,15.89235627,4163.4,4163.2,0.002]
[1759169233265,18.63035627,4163.4,4163.2,0.002]
[1759169233569,4.63805616,4163.1,4163.0,0.002]
[1759169233771,10.37605616,4163.1,4163.0,0.002]
[1759169233972,13.10375538,4163.1,4163.0,0.002]
[1759169234175,13.22156212,4163.1,4163.0,0.002]
[1759169234775,13.67686212,4163.1,4163.0,0.002]
[1759169235390,4.63822926,4162.8,4162.7,0.002]
[1759169235591,18.63070246,4162.8,4162.7,0.002]
[1759169235784,20.40140622,4162.8,4162.7,0.002]
[1759169236096,19.94610622,4162.8,4162.7,0.002]
[1759169240400,19.94610622,4162.8,4158.0,3.40499943]
[1759169240401,2.40280647,4161.8,4161.7,0.4704]
[1759169240580,2.40315293,4161.2,4161.1,0.4704]
[1759169240775,8.14215293,4161.2,4161.1,0.4704]
[1759169240975,8.51174032,4161.2,4161.1,0.4704]
[1759169241303,3.0,4161.1,4160.1,0.4704]
[1759169241504,2.40373058,4160.2,4160.1,0.4704]
[1759169241802,2.40373058,4160.2,4160.1,0.5947]
[1759169241803,8.14273058,4160.2,4160.1,0.5947]
[1759169241976,5.739,4160.2,4160.1,0.5947]
[1759169242182,3.0,4160.2,4160.1,0.5947]
[1759169242593,2.739,4160.5,4160.1,0.5947]
[1759169242789,2.739,4160.5,4160.0,2.40384615]
[1759169242970,2.739,4160.5,4160.2,0.5947]
[1759169243371,3.0249,4160.5,4160.3,0.5947]
[1759169243602,11.2544732,4161.0,4160.4,0.5947]
[1759169243809,0.12,4160.6,4160.5,0.5947]
[1759169244010,5.861,4160.6,4160.5,0.5947]
[1759169244779,3.12,4160.6,4160.5,0.5947]
[1759169244983,2.861,4160.6,4160.5,0.5947]
[1759169246405,0.12,4160.6,4160.5,0.5947]
[1759169246608,0.72317648,4161.5,4160.5,0.89453614]
[1759169246793,0.12,4161.0,4160.6,0.61873499]
[1759169246998,0.12,4161.0,4160.7,0.5947]
[1759169247198,0.12,4161.0,4160.7,2.99809979]
[1759169247399,0.12,4161.0,4160.8,2.99808112]
[1759169247588,0.12,4161.0,4160.9,0.5947]
[1759169250326,0.12,4161.0,4160.9,0.4704]